[Event "NJSK 2023 Jeugd A"]
[Site "Almelo, Netherlands"]
[Date "2023.05.06"]
[Round "7.3"]
[White "Van Kuijk, Vadim"]
[Black "Achuthan, Dylan"]
[Result "0-1"]
[TimeControl "90min/40moves + 30min + 30sec/move"]
[WhiteElo "1968"]
[BlackElo "2045"]

1. e4 {[%clk 01:29:06]} {[%emt 00:01:54]} d5 {[%clk 01:30:51]} {[%emt
00:00:09]} 2. exd5 {[%clk 01:29:29]} {[%emt 00:00:06]} Qxd5 {[%clk 01:31:17]}
{[%emt 00:00:05]} 3. Nc3 {[%clk 01:29:46]} {[%emt 00:00:13]} Qa5 {[%clk
01:31:43]} {[%emt 00:00:04]} 4. d4 {[%clk 01:29:48]} {[%emt 00:00:28]} c6
{[%clk 01:32:03]} {[%emt 00:00:11]} 5. Bc4 {[%clk 01:28:02]} {[%emt 00:02:16]}
Nf6 {[%clk 01:32:13]} {[%emt 00:00:19]} 6. Bd2 {[%clk 01:21:00]} {[%emt
00:07:32]} Bf5 {[%clk 01:29:48]} {[%emt 00:02:55]} 7. Nd5 {[%clk 01:16:43]}
{[%emt 00:04:47]} Qd8 {[%clk 01:30:06]} {[%emt 00:00:12]} 8. Nxf6+ {[%clk
01:16:34]} {[%emt 00:00:39]} gxf6 {[%clk 01:30:19]} {[%emt 00:00:16]} 9. Nf3
{[%clk 00:59:03]} {[%emt 00:18:01]} e6 {[%clk 01:30:35]} {[%emt 00:00:15]} 10.
O-O {[%clk 00:57:23]} {[%emt 00:02:09]} Qc7 {[%clk 01:27:57]} {[%emt 00:03:08]}
11. Nh4 {[%clk 00:53:36]} {[%emt 00:04:17]} Bg6 {[%clk 01:27:35]} {[%emt
00:00:52]} 12. Qf3 {[%clk 00:46:57]} {[%emt 00:07:10]} Nd7 {[%clk 01:26:26]}
{[%emt 00:01:38]} 13. Bf4 {[%clk 00:47:01]} {[%emt 00:00:26]} Bd6 {[%clk
01:25:33]} {[%emt 00:01:23]} 14. Bxd6 {[%clk 00:45:18]} {[%emt 00:02:13]} Qxd6
{[%clk 01:25:58]} {[%emt 00:00:05]} 15. c3 {[%clk 00:38:12]} {[%emt 00:07:36]}
O-O-O {[%clk 01:18:22]} {[%emt 00:08:05]} 16. Qg3 {[%clk 00:33:36]} {[%emt
00:05:07]} Nb6 {[%clk 01:15:18]} {[%emt 00:03:35]} 17. Qxd6 {[%clk 00:29:54]}
{[%emt 00:04:12]} Rxd6 {[%clk 01:15:32]} {[%emt 00:00:15]} 18. Nxg6 {[%clk
00:30:19]} {[%emt 00:00:05]} hxg6 {[%clk 01:08:05]} {[%emt 00:07:57]} 19. Bb3
{[%clk 00:29:12]} {[%emt 00:01:38]} f5 {[%clk 00:56:33]} {[%emt 00:12:02]} 20.
Rad1 {[%clk 00:21:45]} {[%emt 00:07:57]} Nd7 {[%clk 00:48:50]} {[%emt
00:08:12]} 21. g3 {[%clk 00:18:33]} {[%emt 00:03:42]} g5 {[%clk 00:47:41]}
{[%emt 00:01:39]} 22. f3 {[%clk 00:17:23]} {[%emt 00:01:40]} Nf6 {[%clk
00:43:43]} {[%emt 00:04:27]} 23. Rde1 {[%clk 00:13:56]} {[%emt 00:03:57]} c5
{[%clk 00:28:56]} {[%emt 00:15:17]} 24. d5 {[%clk 00:10:52]} {[%emt 00:03:34]}
Nxd5 {[%clk 00:27:51]} {[%emt 00:01:35]} 25. Re5 {[%clk 00:11:14]} {[%emt
00:00:07]} Nc7 {[%clk 00:26:54]} {[%emt 00:01:27]} 26. Rxc5 {[%clk 00:11:13]}
{[%emt 00:00:31]} Rd2 {[%clk 00:26:51]} {[%emt 00:00:34]} 27. Rf2 {[%clk
00:11:20]} {[%emt 00:00:23]} Rxf2 {[%clk 00:26:57]} {[%emt 00:00:25]} 28. Kxf2
{[%clk 00:11:46]} {[%emt 00:00:04]} Rxh2+ {[%clk 00:27:00]} {[%emt 00:00:27]}
29. Kg1 {[%clk 00:11:59]} {[%emt 00:00:17]} Rxb2 {[%clk 00:26:43]} {[%emt
00:00:47]} 30. g4 {[%clk 00:12:00]} {[%emt 00:00:28]} b6 {[%clk 00:23:48]}
{[%emt 00:03:25]} 31. Re5 {[%clk 00:12:25]} {[%emt 00:00:05]} f6 {[%clk
00:22:50]} {[%emt 00:01:28]} 32. Re3 {[%clk 00:11:04]} {[%emt 00:01:51]} fxg4
{[%clk 00:19:25]} {[%emt 00:03:55]} 33. fxg4 {[%clk 00:11:07]} {[%emt
00:00:26]} Kd7 {[%clk 00:17:53]} {[%emt 00:02:02]} 34. Rd3+ {[%clk 00:10:27]}
{[%emt 00:01:11]} Ke7 {[%clk 00:16:02]} {[%emt 00:02:20]} 35. Rh3 {[%clk
00:10:52]} {[%emt 00:00:05]} Re2 {[%clk 00:13:58]} {[%emt 00:02:34]} 36. Rh7+
{[%clk 00:08:27]} {[%emt 00:02:56]} Kd6 {[%clk 00:14:16]} {[%emt 00:00:12]} 37.
Kf1 {[%clk 00:08:23]} {[%emt 00:00:34]} Re4 {[%clk 00:14:16]} {[%emt 00:00:30]}
38. Bd1 {[%clk 00:08:49]} {[%emt 00:00:05]} Nd5 {[%clk 00:13:15]} {[%emt
00:01:31]} 39. Rxa7 {[%clk 00:08:42]} {[%emt 00:00:36]} Ne3+ {[%clk 00:13:23]}
{[%emt 00:00:22]} 40. Ke2 {[%clk 00:08:42]} {[%emt 00:00:30]} Nxd1+ {[%clk
00:13:14]} {[%emt 00:00:39]} 41. Kxd1 {[%clk 00:09:07]} {[%emt 00:00:06]} Rxg4
{[%clk 00:13:34]} {[%emt 00:00:10]} 42. Rb7 {[%clk 00:09:30]} {[%emt 00:00:07]}
Kc6 {[%clk 00:13:47]} {[%emt 00:00:17]} 43. Re7 {[%clk 00:09:44]} {[%emt
00:00:16]} Re4 {[%clk 00:14:05]} {[%emt 00:00:12]} 0-1

[Event "NJSK 2023 Jeugd A"]
[Site "Almelo, Netherlands"]
[Date "2023.05.06"]
[Round "7.4"]
[White "Groen, Jari"]
[Black "Knol, Daniel"]
[Result "1-0"]
[TimeControl "90min/40moves + 30min + 30sec/move"]
[WhiteElo "2028"]
[BlackElo "1819"]

1. e4 {[%clk 01:27:57]} {[%emt 00:03:02]} c5 {[%clk 01:30:57]} {[%emt
00:00:03]} 2. Nf3 {[%clk 01:28:16]} {[%emt 00:00:11]} e6 {[%clk 01:31:08]}
{[%emt 00:00:19]} 3. d4 {[%clk 01:28:27]} {[%emt 00:00:19]} cxd4 {[%clk
01:31:34]} {[%emt 00:00:04]} 4. Nxd4 {[%clk 01:28:51]} {[%emt 00:00:06]} Nf6
{[%clk 01:32:02]} {[%emt 00:00:03]} 5. Nc3 {[%clk 01:28:57]} {[%emt 00:00:24]}
Nc6 {[%clk 01:32:28]} {[%emt 00:00:04]} 6. Ndb5 {[%clk 01:28:46]} {[%emt
00:00:41]} Bc5 {[%clk 01:32:42]} {[%emt 00:00:17]} 7. Bf4 {[%clk 01:28:27]}
{[%emt 00:00:48]} O-O {[%clk 01:33:05]} {[%emt 00:00:06]} 8. Bc7 {[%clk
01:28:12]} {[%emt 00:00:45]} Qe7 {[%clk 01:33:34]} {[%emt 00:00:01]} 9. Bd6
{[%clk 01:28:30]} {[%emt 00:00:12]} Bxd6 {[%clk 01:34:01]} {[%emt 00:00:03]} 10.
Qxd6 {[%clk 01:28:03]} {[%emt 00:00:57]} Ne8 {[%clk 01:34:26]} {[%emt
00:00:06]} 11. Qxe7 {[%clk 01:27:55]} {[%emt 00:00:38]} Nxe7 {[%clk 01:34:54]}
{[%emt 00:00:02]} 12. O-O-O {[%clk 01:26:56]} {[%emt 00:01:28]} a6 {[%clk
01:35:21]} {[%emt 00:00:03]} 13. Nd6 {[%clk 01:24:35]} {[%emt 00:02:51]} Nxd6
{[%clk 01:35:49]} {[%emt 00:00:02]} 14. Rxd6 {[%clk 01:24:52]} {[%emt
00:00:13]} b5 {[%clk 01:36:01]} {[%emt 00:00:19]} 15. Bd3 {[%clk 01:23:10]}
{[%emt 00:02:11]} Ra7 {[%clk 01:33:42]} {[%emt 00:02:50]} 16. a4 {[%clk
01:05:57]} {[%emt 00:17:43]} b4 {[%clk 01:29:57]} {[%emt 00:04:14]} 17. Nb1
{[%clk 01:05:00]} {[%emt 00:01:27]} f5 {[%clk 01:28:12]} {[%emt 00:02:15]} 18.
f3 {[%clk 01:02:24]} {[%emt 00:03:06]} fxe4 {[%clk 01:28:29]} {[%emt 00:00:12]}
19. Bxe4 {[%clk 01:02:14]} {[%emt 00:00:40]} Nf5 {[%clk 01:23:31]} {[%emt
00:05:29]} 20. Rb6 {[%clk 00:55:31]} {[%emt 00:07:13]} a5 {[%clk 01:21:30]}
{[%emt 00:02:31]} 21. Nd2 {[%clk 00:49:21]} {[%emt 00:06:40]} d5 {[%clk
01:13:16]} {[%emt 00:08:44]} 22. Bd3 {[%clk 00:48:00]} {[%emt 00:01:52]} Ne3
{[%clk 01:08:05]} {[%emt 00:05:40]} 23. Rg1 {[%clk 00:43:34]} {[%emt 00:04:56]}
Bd7 {[%clk 01:08:18]} {[%emt 00:00:18]} 24. b3 {[%clk 00:39:59]} {[%emt
00:04:05]} Rc8 {[%clk 01:05:27]} {[%emt 00:03:21]} 25. Nf1 {[%clk 00:31:41]}
{[%emt 00:08:48]} Nxf1 {[%clk 01:01:47]} {[%emt 00:04:10]} 26. Rxf1 {[%clk
00:31:27]} {[%emt 00:00:44]} Rc6 {[%clk 01:00:13]} {[%emt 00:02:04]} 27. Rxc6
{[%clk 00:27:36]} {[%emt 00:04:21]} Bxc6 {[%clk 01:00:41]} {[%emt 00:00:02]} 28.
Re1 {[%clk 00:27:18]} {[%emt 00:00:48]} Re7 {[%clk 01:00:32]} {[%emt 00:00:39]}
29. Re5 {[%clk 00:24:40]} {[%emt 00:03:07]} h6 {[%clk 00:59:54]} {[%emt
00:01:08]} 30. f4 {[%clk 00:22:16]} {[%emt 00:02:54]} Kf7 {[%clk 00:59:24]}
{[%emt 00:01:01]} 31. Kd2 {[%clk 00:21:49]} {[%emt 00:00:57]} Rc7 {[%clk
00:50:32]} {[%emt 00:09:23]} 32. Be2 {[%clk 00:15:04]} {[%emt 00:07:14]} Kf6
{[%clk 00:49:05]} {[%emt 00:01:57]} 33. h4 {[%clk 00:12:52]} {[%emt 00:02:42]}
Be8 {[%clk 00:49:04]} {[%emt 00:00:32]} 34. Bd3 {[%clk 00:09:12]} {[%emt
00:04:10]} Rc6 {[%clk 00:46:58]} {[%emt 00:02:36]} 35. g4 {[%clk 00:08:11]}
{[%emt 00:01:31]} Bg6 {[%clk 00:33:29]} {[%emt 00:13:59]} 36. Bxg6 {[%clk
00:06:19]} {[%emt 00:02:22]} Kxg6 {[%emt 00:00:02]} 37. f5+ {[%clk 00:04:51]}
{[%emt 00:01:57]} Kf6 {[%clk 00:34:18]} {[%emt 00:00:10]} 38. Rxe6+ {[%clk
00:05:02]} {[%emt 00:00:18]} Rxe6 {[%clk 00:34:45]} {[%emt 00:00:04]} 39. fxe6
{[%clk 00:05:27]} {[%emt 00:00:05]} Kxe6 {[%clk 00:35:13]} {[%emt 00:00:02]} 40.
c3 {[%clk 00:04:10]} {[%emt 00:01:47]} bxc3+ {[%clk 00:32:03]} {[%emt
00:03:40]} 41. Kxc3 {[%clk 00:04:32]} {[%emt 00:00:08]} Ke5 {[%clk 00:32:31]}
{[%emt 00:00:02]} 42. b4 {[%clk 00:27:34]} {[%emt 00:07:28]} d4+ {[%clk
00:58:09]} {[%emt 00:04:52]} 43. Kc4 {[%clk 00:20:16]} {[%emt 00:07:48]} axb4
{[%clk 00:53:10]} {[%emt 00:05:30]} 44. a5 {[%clk 00:19:14]} {[%emt 00:01:32]}
Kf4 {[%clk 00:44:33]} {[%emt 00:09:06]} 45. a6 {[%clk 00:17:00]} {[%emt
00:02:45]} b3 {[%clk 00:43:02]} {[%emt 00:02:01]} 46. Kxb3 {[%clk 00:16:04]}
{[%emt 00:01:26]} Kxg4 {[%clk 00:43:11]} {[%emt 00:00:21]} 47. a7 {[%clk
00:15:32]} {[%emt 00:01:01]} Kxh4 {[%clk 00:43:38]} {[%emt 00:00:04]} 48. a8=Q
{[%clk 00:15:53]} {[%emt 00:00:10]} h5 {[%clk 00:43:53]} {[%emt 00:00:14]} 49.
Qg2 {[%clk 00:15:23]} {[%emt 00:00:59]} g5 {[%clk 00:44:16]} {[%emt 00:00:07]}
50. Kc4 {[%clk 00:15:23]} {[%emt 00:00:30]} g4 {[%clk 00:44:45]} {[%emt
00:00:02]} 51. Qh2 {[%clk 00:15:01]} {[%emt 00:00:52]} Kg5 {[%emt 00:00:08]} 52.
Kxd4 {[%clk 00:15:18]} {[%emt 00:00:12]} 1-0

[Event "NJSK 2023 Jeugd A"]
[Site "Almelo, Netherlands"]
[Date "2023.05.06"]
[Round "7.5"]
[White "Boeren, Jurriaan"]
[Black "Goudriaan, Rafael"]
[Result "1/2-1/2"]
[TimeControl "90min/40moves + 30min + 30sec/move"]
[WhiteElo "1979"]
[BlackElo "1992"]

1. e4 {[%clk 01:30:59]} {[%emt 00:00:01]} e5 {[%clk 01:30:56]} {[%emt
00:00:04]} 2. Nf3 {[%clk 01:31:26]} {[%emt 00:00:03]} Nc6 {[%clk 01:31:23]}
{[%emt 00:00:03]} 3. Bc4 {[%clk 01:31:51]} {[%emt 00:00:05]} Bc5 {[%clk
01:31:49]} {[%emt 00:00:03]} 4. c3 {[%clk 01:32:17]} {[%emt 00:00:05]} Nf6
{[%clk 01:32:17]} {[%emt 00:00:03]} 5. d4 {[%clk 01:32:43]} {[%emt 00:00:03]}
exd4 {[%clk 01:32:43]} {[%emt 00:00:03]} 6. cxd4 {[%clk 01:33:10]} {[%emt
00:00:04]} Bb4+ {[%clk 01:33:10]} {[%emt 00:00:03]} 7. Nc3 {[%clk 01:33:34]}
{[%emt 00:00:05]} Nxe4 {[%clk 01:33:37]} {[%emt 00:00:03]} 8. O-O {[%clk
01:33:56]} {[%emt 00:00:08]} Bxc3 {[%clk 01:34:02]} {[%emt 00:00:05]} 9. d5
{[%clk 01:34:23]} {[%emt 00:00:04]} Bf6 {[%clk 01:34:28]} {[%emt 00:00:04]} 10.
Re1 {[%clk 01:34:49]} {[%emt 00:00:03]} Ne7 {[%clk 01:34:52]} {[%emt 00:00:06]}
11. Rxe4 {[%clk 01:35:15]} {[%emt 00:00:04]} d6 {[%clk 01:35:20]} {[%emt
00:00:03]} 12. Bg5 {[%clk 01:35:40]} {[%emt 00:00:06]} Bxg5 {[%clk 01:35:45]}
{[%emt 00:00:04]} 13. Nxg5 {[%clk 01:36:07]} {[%emt 00:00:03]} O-O {[%clk
01:36:11]} {[%emt 00:00:04]} 14. Nxh7 {[%clk 01:36:34]} {[%emt 00:00:03]} Kxh7
{[%clk 01:36:37]} {[%emt 00:00:03]} 15. Qh5+ {[%clk 01:37:00]} {[%emt
00:00:04]} Kg8 {[%clk 01:37:04]} {[%emt 00:00:03]} 16. Rh4 {[%clk 01:37:26]}
{[%emt 00:00:04]} f5 {[%clk 01:37:32]} {[%emt 00:00:02]} 17. Qh7+ {[%clk
01:37:53]} {[%emt 00:00:04]} Kf7 {[%clk 01:37:58]} {[%emt 00:00:03]} 18. Rh6
{[%clk 01:38:17]} {[%emt 00:00:06]} Rg8 {[%clk 01:38:25]} {[%emt 00:00:03]} 19.
Re1 {[%clk 01:38:41]} {[%emt 00:00:05]} Qf8 {[%clk 01:38:51]} {[%emt 00:00:04]}
20. Bb5 {[%clk 01:39:07]} {[%emt 00:00:05]} Rh8 {[%clk 01:39:17]} {[%emt
00:00:04]} 21. Qxh8 {[%clk 01:39:34]} {[%emt 00:00:03]} gxh6 {[%clk 01:39:42]}
{[%emt 00:00:05]} 22. Qh7+ {[%clk 01:39:57]} {[%emt 00:00:07]} Kf6 {[%clk
01:40:09]} {[%emt 00:00:04]} 23. Rxe7 {[%clk 01:40:22]} {[%emt 00:00:05]} Qxe7
{[%clk 01:40:37]} {[%emt 00:00:01]} 24. Qxh6+ {[%clk 01:40:47]} {[%emt
00:00:06]} Ke5 {[%clk 01:41:05]} {[%emt 00:00:02]} 25. Qe3+ {[%clk 01:41:12]}
{[%emt 00:00:05]} Kf6 {[%clk 01:41:31]} {[%emt 00:00:03]} 26. Qh6+ {[%clk
01:41:39]} {[%emt 00:00:03]} Ke5 {[%clk 01:41:59]} {[%emt 00:00:02]} 27. Qe3+
{[%clk 01:42:05]} {[%emt 00:00:04]} Kf6 {[%clk 01:42:27]} {[%emt 00:00:02]} 28.
Qh6+ {[%clk 01:42:30]} {[%emt 00:00:06]} Ke5 {[%clk 01:41:44]} {[%emt
00:00:04]} 1/2-1/2

[Event "NJSK 2023 Jeugd A"]
[Site "Almelo, Netherlands"]
[Date "2023.05.06"]
[Round "7.6"]
[White "Smid, Jelle"]
[Black "Wierenga, Jael"]
[Result "0-1"]
[TimeControl "90min/40moves + 30min + 30sec/move"]
[WhiteElo "1776"]
[BlackElo "1772"]

1. c4 {[%clk 01:30:33]} {[%emt 00:00:26]} e6 {[%clk 01:30:55]} {[%emt
00:00:06]} 2. Nc3 {[%clk 01:30:56]} {[%emt 00:00:07]} d5 {[%clk 01:31:18]}
{[%emt 00:00:07]} 3. d4 {[%clk 01:31:21]} {[%emt 00:00:05]} a6 {[%clk
01:31:44]} {[%emt 00:00:04]} 4. cxd5 {[%clk 01:31:09]} {[%emt 00:00:42]} exd5
{[%clk 01:32:12]} {[%emt 00:00:02]} 5. Nf3 {[%clk 01:30:49]} {[%emt 00:00:49]}
Nf6 {[%clk 01:30:45]} {[%emt 00:01:58]} 6. Bg5 {[%clk 01:31:12]} {[%emt
00:00:07]} Be7 {[%clk 01:27:19]} {[%emt 00:03:56]} 7. e3 {[%clk 01:31:33]}
{[%emt 00:00:09]} O-O {[%clk 01:27:29]} {[%emt 00:00:21]} 8. Bd3 {[%clk
01:31:53]} {[%emt 00:00:10]} h6 {[%clk 01:27:44]} {[%emt 00:00:15]} 9. Bh4
{[%clk 01:31:53]} {[%emt 00:00:30]} Re8 {[%clk 01:27:11]} {[%emt 00:01:03]} 10.
O-O {[%clk 01:32:06]} {[%emt 00:00:17]} c6 {[%clk 01:27:13]} {[%emt 00:00:29]}
11. Qc2 {[%clk 01:29:26]} {[%emt 00:03:10]} Ne4 {[%clk 01:24:20]} {[%emt
00:03:23]} 12. Bxe7 {[%clk 01:29:16]} {[%emt 00:00:39]} Qxe7 {[%clk 01:24:38]}
{[%emt 00:00:12]} 13. Ne5 {[%clk 01:27:25]} {[%emt 00:02:21]} Nd7 {[%clk
01:11:43]} {[%emt 00:13:25]} 14. Nxd7 {[%clk 01:26:33]} {[%emt 00:01:22]} Bxd7
{[%clk 01:11:55]} {[%emt 00:00:19]} 15. Rae1 {[%clk 01:23:07]} {[%emt
00:03:55]} Nxc3 {[%clk 01:05:37]} {[%emt 00:06:49]} 16. Qxc3 {[%clk 01:22:35]}
{[%emt 00:01:01]} Qg5 {[%clk 01:04:56]} {[%emt 00:01:10]} 17. Kh1 {[%clk
01:18:48]} {[%emt 00:04:18]} Re7 {[%clk 00:59:04]} {[%emt 00:06:23]} 18. f3
{[%clk 01:13:40]} {[%emt 00:05:38]} Rae8 {[%clk 00:56:24]} {[%emt 00:03:10]} 19.
e4 {[%clk 01:13:46]} {[%emt 00:00:24]} dxe4 {[%clk 00:54:57]} {[%emt 00:01:57]}
20. fxe4 {[%clk 01:14:07]} {[%emt 00:00:09]} Be6 {[%clk 00:53:56]} {[%emt
00:01:27]} 21. Rf3 {[%emt 00:33:56]} Bg4 {[%clk 00:29:34]} 22. Rff1 {[%clk
00:59:04]} {[%emt 00:07:03]} Rd7 {[%clk 00:25:46]} {[%emt 00:04:17]} 23. Bc4
{[%clk 00:51:25]} {[%emt 00:08:10]} Bh5 {[%clk 00:17:07]} {[%emt 00:09:10]} 24.
d5 {[%clk 00:42:49]} {[%emt 00:09:05]} Bg6 {[%clk 00:13:24]} {[%emt 00:04:13]}
25. dxc6 {[%clk 00:43:00]} {[%emt 00:00:20]} bxc6 {[%clk 00:13:35]} {[%emt
00:00:19]} 26. Rf3 {[%clk 00:30:46]} {[%emt 00:12:43]} Rxe4 {[%clk 00:09:04]}
{[%emt 00:05:01]} 27. Rg3 {[%clk 00:25:14]} {[%emt 00:06:01]} Rxe1+ {[%clk
00:07:17]} {[%emt 00:02:18]} 28. Qxe1 {[%clk 00:25:38]} {[%emt 00:00:05]} Qe7
{[%clk 00:06:49]} {[%emt 00:00:58]} 29. Qxe7 {[%clk 00:24:42]} {[%emt
00:01:26]} Rd1+ {[%clk 00:07:08]} {[%emt 00:00:11]} 30. Qe1 {[%clk 00:24:55]}
{[%emt 00:00:18]} Rxe1+ {[%clk 00:07:37]} {[%emt 00:00:02]} 31. Bf1 {[%clk
00:25:24]} {[%emt 00:00:02]} Rxf1# {[%clk 00:08:05]} {[%emt 00:00:02]} 0-1

[Event "NJSK 2023 Jeugd A"]
[Site "Almelo, Netherlands"]
[Date "2023.05.06"]
[Round "7.7"]
[White "Adams, Oscar"]
[Black "Van Rootselaar, Rik"]
[Result "1-0"]
[TimeControl "90min/40moves + 30min + 30sec/move"]
[WhiteElo "1760"]
[BlackElo "1812"]

1. f4 {[%clk 01:30:59]} {[%emt 00:00:01]} d5 {[%clk 01:30:52]} {[%emt
00:00:08]} 2. b3 {[%clk 01:31:19]} {[%emt 00:00:10]} Nf6 {[%clk 01:31:02]}
{[%emt 00:00:20]} 3. Bb2 {[%clk 01:31:45]} {[%emt 00:00:04]} g6 {[%clk
01:30:45]} {[%emt 00:00:46]} 4. Nf3 {[%clk 01:32:10]} {[%emt 00:00:06]} Bg7
{[%clk 01:31:09]} {[%emt 00:00:05]} 5. e3 {[%clk 01:32:39]} {[%emt 00:00:02]}
O-O {[%clk 01:31:22]} {[%emt 00:00:16]} 6. a4 {[%clk 01:32:46]} {[%emt
00:00:24]} c5 {[%clk 01:31:24]} {[%emt 00:00:27]} 7. Be2 {[%clk 01:31:32]}
{[%emt 00:01:44]} Nc6 {[%clk 01:31:21]} {[%emt 00:00:34]} 8. O-O {[%clk
01:31:54]} {[%emt 00:00:08]} b6 {[%clk 01:30:22]} {[%emt 00:01:29]} 9. Bb5
{[%clk 01:31:07]} {[%emt 00:01:17]} Bb7 {[%clk 01:30:10]} {[%emt 00:00:41]} 10.
Bxc6 {[%clk 01:31:31]} {[%emt 00:00:07]} Bxc6 {[%clk 01:30:29]} {[%emt
00:00:10]} 11. Ne5 {[%clk 01:31:59]} {[%emt 00:00:03]} Bb7 {[%clk 01:30:31]}
{[%emt 00:00:28]} 12. d3 {[%clk 01:32:02]} {[%emt 00:00:27]} Qd6 {[%clk
01:23:54]} {[%emt 00:07:06]} 13. Nd2 {[%clk 01:31:37]} {[%emt 00:00:56]} Ne8
{[%clk 01:20:34]} {[%emt 00:03:50]} 14. Rf3 {[%clk 01:24:46]} {[%emt 00:07:21]}
f6 {[%clk 01:13:24]} {[%emt 00:07:39]} 15. Ng4 {[%clk 01:24:21]} {[%emt
00:00:55]} h5 {[%clk 01:10:56]} {[%emt 00:02:58]} 16. Nf2 {[%clk 01:22:04]}
{[%emt 00:02:48]} e5 {[%clk 01:10:30]} {[%emt 00:00:55]} 17. f5 {[%clk
01:21:48]} {[%emt 00:00:47]} gxf5 {[%clk 01:00:18]} {[%emt 00:10:41]} 18. Rxf5
{[%clk 01:21:54]} {[%emt 00:00:24]} Bh6 {[%clk 01:00:22]} {[%emt 00:00:26]} 19.
Rf3 {[%clk 01:20:42]} {[%emt 00:01:42]} Ng7 {[%clk 00:58:43]} {[%emt 00:02:09]}
20. d4 {[%clk 01:19:12]} {[%emt 00:02:01]} cxd4 {[%clk 00:57:25]} {[%emt
00:01:48]} 21. e4 {[%clk 01:15:08]} {[%emt 00:04:34]} Bxd2 {[%clk 00:51:04]}
{[%emt 00:06:51]} 22. Qxd2 {[%clk 01:15:14]} {[%emt 00:00:23]} dxe4 {[%clk
00:51:17]} {[%emt 00:00:17]} 23. Rg3 {[%clk 01:15:13]} {[%emt 00:00:31]} h4
{[%clk 00:49:12]} {[%emt 00:02:35]} 24. Rh3 {[%clk 01:14:19]} {[%emt 00:01:24]}
Kf7 {[%emt 00:12:21]} 25. Rf1 {[%clk 01:12:05]} Qe6 {[%clk 00:38:23]} {[%emt
00:02:12]} 26. Qe2 {[%clk 01:10:44]} {[%emt 00:01:51]} e3 {[%clk 00:36:25]}
{[%emt 00:02:28]} 27. Ng4 {[%clk 01:10:07]} {[%emt 00:01:08]} Ke8 {[%clk
00:29:52]} {[%emt 00:07:02]} 28. Rxh4 {[%clk 01:08:37]} {[%emt 00:02:00]} f5
{[%clk 00:27:30]} {[%emt 00:02:51]} 29. Ba3 {[%clk 01:07:42]} {[%emt 00:01:26]}
Qd5 {[%clk 00:24:32]} {[%emt 00:03:28]} 30. Bxf8 {[%clk 01:06:44]} {[%emt
00:01:28]} Kxf8 {[%clk 00:24:56]} {[%emt 00:00:07]} 31. Nf6 {[%clk 01:06:45]}
{[%emt 00:00:29]} Qc6 {[%clk 00:24:42]} {[%emt 00:00:44]} 32. Nh5 {[%clk
01:05:58]} {[%emt 00:01:17]} Qg6 {[%clk 00:24:12]} {[%emt 00:00:59]} 33. Ng3
{[%clk 01:00:45]} {[%emt 00:05:43]} Ke7 {[%clk 00:20:12]} {[%emt 00:04:30]} 34.
Qb5 {[%clk 00:58:20]} {[%emt 00:02:56]} Kd6 {[%clk 00:19:37]} {[%emt 00:01:05]}
35. a5 {[%clk 00:57:09]} {[%emt 00:01:41]} f4 {[%clk 00:15:58]} {[%emt
00:04:08]} 36. axb6 {[%clk 00:57:04]} {[%emt 00:00:36]} fxg3 {[%clk 00:14:43]}
{[%emt 00:01:44]} 37. bxa7 {[%clk 00:57:22]} {[%emt 00:00:13]} gxh2+ {[%clk
00:13:50]} {[%emt 00:01:23]} 38. Rxh2 {[%clk 00:57:47]} {[%emt 00:00:04]} Qe4
{[%clk 00:11:00]} {[%emt 00:03:20]} 39. Qb4+ {[%clk 00:56:45]} {[%emt
00:01:32]} Ke6 {[%clk 00:07:23]} {[%emt 00:04:07]} 40. Rh6+ {[%clk 00:57:03]}
{[%emt 00:00:12]} 1-0